[Event "Titled Tuesday Blitz June 27 Late 2023"]
[White "Rangel, Daniel"]
[Black "Lamard, Guillaume"]
[WhiteFideId "2124475"]
[BlackFideId "600261"]
[WhiteElo "2437"]
[BlackElo "2651"]
[Result "1/2-1/2"]
[Round "4"]
[TimeControl "180+2"]
[Date "2023.06.27"]
[WhiteClock "0:00:08"]
[BlackClock "0:00:10"]
[Board "81"]

1. c4 {[%clk 0:03:00]}  Nf6 {[%clk 0:02:56]} 2. g3 {[%clk 0:03:01]}  g6 {[%clk 0:02:54]} 3. Bg2 {[%clk 0:03:01]}  Bg7 {[%clk 0:02:54]} 4. Nc3 {[%clk 0:03:02]}  O-O {[%clk 0:02:54]} 5. e3 {[%clk 0:03:02]}  c6 {[%clk 0:02:36]} 6. Nge2 {[%clk 0:03:01]}  d5 {[%clk 0:02:36]} 7. cxd5 {[%clk 0:03:02]}  cxd5 {[%clk 0:02:36]} 8. O-O {[%clk 0:02:59]}  Nc6 {[%clk 0:02:35]} 9. b3 {[%clk 0:02:58]}  b6 {[%clk 0:02:28]} 10. Bb2 {[%clk 0:02:54]}  Ba6 {[%clk 0:02:27]} 11. Re1 {[%clk 0:02:40]}  g5 {[%clk 0:02:24]} 12. a3 {[%clk 0:02:20]}  Ne5 {[%clk 0:02:20]} 13. Nd4 {[%clk 0:02:13]}  Nd3 {[%clk 0:02:20]} 14. Qe2 {[%clk 0:01:43]}  Qc8 {[%clk 0:02:06]} 15. Bf1 {[%clk 0:01:39]}  e5 {[%clk 0:01:55]} 16. Nf3 {[%clk 0:01:17]}  Nxe1 {[%clk 0:01:47]} 17. Qxe1 {[%clk 0:01:16]}  Bxf1 {[%clk 0:01:47]} 18. Qxf1 {[%clk 0:01:13]}  Qf5 {[%clk 0:01:45]} 19. Kg2 {[%clk 0:01:05]}  Rfd8 {[%clk 0:01:33]} 20. d4 {[%clk 0:01:01]}  e4 {[%clk 0:01:26]} 21. Ne5 {[%clk 0:00:59]}  Ng4 {[%clk 0:01:23]} 22. Nc6 {[%clk 0:00:44]}  Qf3+ {[%clk 0:01:07]} 23. Kg1 {[%clk 0:00:44]}  Rd7 {[%clk 0:01:01]} 24. Nxd5 {[%clk 0:00:37]}  Kh8 {[%clk 0:00:50]} 25. Nc3 {[%clk 0:00:28]}  Rc8 {[%clk 0:00:49]} 26. Nb4 {[%clk 0:00:19]}  Nxe3 {[%clk 0:00:43]} 27. fxe3 {[%clk 0:00:16]}  Qxe3+ {[%clk 0:00:43]} 28. Kh1 {[%clk 0:00:10]}  Rxc3 {[%clk 0:00:43]} 29. Bxc3 {[%clk 0:00:10]}  Qxc3 {[%clk 0:00:43]} 30. Rc1 {[%clk 0:00:11]}  Qxd4 {[%clk 0:00:38]} 31. Rc8+ {[%clk 0:00:11]}  Rd8 {[%clk 0:00:39]} 32. Rxd8+ {[%clk 0:00:11]}  Qxd8 {[%clk 0:00:39]} 33. Qxf7 {[%clk 0:00:12]}  e3 {[%clk 0:00:18]} 34. Qe6 {[%clk 0:00:12]}  Qd1+ {[%clk 0:00:17]} 35. Kg2 {[%clk 0:00:12]}  Qe2+ {[%clk 0:00:17]} 36. Kh3 {[%clk 0:00:12]}  g4+ {[%clk 0:00:16]} 37. Kh4 {[%clk 0:00:12]}  Qxh2+ {[%clk 0:00:15]} 38. Kxg4 {[%clk 0:00:12]}  Qe2+ {[%clk 0:00:15]} 39. Kh3 {[%clk 0:00:11]}  Qf1+ {[%clk 0:00:15]} 40. Kg4 {[%clk 0:00:10]}  e2 {[%clk 0:00:15]} 41. Nd3 {[%clk 0:00:08]}  h6 {[%clk 0:00:13]} 42. Qe8+ {[%clk 0:00:07]}  Kh7 {[%clk 0:00:13]} 43. Qe4+ {[%clk 0:00:07]}  Kg8 {[%clk 0:00:14]} 44. Qe8+ {[%clk 0:00:07]}  Bf8 {[%clk 0:00:14]} 45. Qe6+ {[%clk 0:00:08]}  Kg7 {[%clk 0:00:14]} 46. Qe5+ {[%clk 0:00:08]}  Kg8 {[%clk 0:00:12]} 47. Qe6+ {[%clk 0:00:08]}  Kg7 {[%clk 0:00:10]} 48. Qe5+ {[%clk 0:00:08]}  Kh7 {[%clk 0:00:11]} 49. Qe4+ {[%clk 0:00:08]}  Kg8 {[%clk 0:00:10]} 50. Qe6+ {[%clk 0:00:08]} 1/2-1/2


[Site "https://www.chess.com"]

[Event "Titled Tuesday Blitz June 27 Late 2023"]
[White "Ashraf, Artin"]
[Black "Ai, Evan"]
[WhiteFideId "22514805"]
[BlackFideId "2094770"]
[WhiteElo "2649"]
[BlackElo "2430"]
[Result "1-0"]
[Round "4"]
[TimeControl "180+2"]
[Date "2023.06.27"]
[WhiteClock "0:01:42"]
[BlackClock "0:02:11"]
[Board "82"]

1. e4 {[%clk 0:02:58]}  e5 {[%clk 0:02:59]} 2. Nf3 {[%clk 0:02:57]}  Nc6 {[%clk 0:02:59]} 3. Bb5 {[%clk 0:02:58]}  a6 {[%clk 0:03:00]} 4. Ba4 {[%clk 0:02:57]}  Nf6 {[%clk 0:02:59]} 5. O-O {[%clk 0:02:57]}  Ke7 {[%clk 0:03:00]} 6. d4 {[%clk 0:02:43]}  b5 {[%clk 0:02:52]} 7. dxe5 {[%clk 0:02:33]}  Nxe4 {[%clk 0:02:48]} 8. Bb3 {[%clk 0:02:29]}  Ke8 {[%clk 0:02:47]} 9. Qd5 {[%clk 0:02:26]}  Qe7 {[%clk 0:02:44]} 10. Qxe4 {[%clk 0:02:24]}  Bb7 {[%clk 0:02:39]} 11. Nc3 {[%clk 0:02:12]}  Qc5 {[%clk 0:02:32]} 12. Be3 {[%clk 0:02:06]}  Qe7 {[%clk 0:02:32]} 13. Nd5 {[%clk 0:01:55]}  Qd8 {[%clk 0:02:32]} 14. Nf6+ {[%clk 0:01:52]}  gxf6 {[%clk 0:02:25]} 15. exf6+ {[%clk 0:01:53]}  Ne7 {[%clk 0:02:23]} 16. Qxb7 {[%clk 0:01:52]}  Nc6 {[%clk 0:02:21]} 17. Ng5 {[%clk 0:01:43]}  Rb8 {[%clk 0:02:11]} 18. Bxf7# {[%clk 0:01:42]} 1-0


[Site "https://www.chess.com"]

[Event "Titled Tuesday Blitz June 27 Late 2023"]
[White "Guzman Moneo, Alberto"]
[Black "reevecanada"]
[WhiteFideId "2209616"]
[WhiteElo "2383"]
[BlackElo "2647"]
[Result "1-0"]
[Round "4"]
[TimeControl "180+2"]
[Date "2023.06.27"]
[WhiteClock "0:00:24"]
[BlackClock "0:00:11"]
[Board "83"]

1. e4 {[%clk 0:03:00]}  c5 {[%clk 0:02:58]} 2. Nc3 {[%clk 0:03:00]}  d6 {[%clk 0:02:59]} 3. f4 {[%clk 0:03:00]}  Nc6 {[%clk 0:02:57]} 4. Nf3 {[%clk 0:03:01]}  Bd7 {[%clk 0:02:54]} 5. Bc4 {[%clk 0:03:01]}  g6 {[%clk 0:02:54]} 6. f5 {[%clk 0:03:00]}  gxf5 {[%clk 0:02:52]} 7. d3 {[%clk 0:03:01]}  Bg7 {[%clk 0:02:51]} 8. O-O {[%clk 0:02:58]}  Nf6 {[%clk 0:02:51]} 9. Qe1 {[%clk 0:02:53]}  Qc7 {[%clk 0:02:46]} 10. Ng5 {[%clk 0:02:45]}  Ne5 {[%clk 0:02:45]} 11. exf5 {[%clk 0:02:43]}  Nxc4 {[%clk 0:02:38]} 12. dxc4 {[%clk 0:02:43]}  O-O {[%clk 0:02:37]} 13. Qh4 {[%clk 0:02:37]}  Qc8 {[%clk 0:02:35]} 14. Nd5 {[%clk 0:02:34]}  Re8 {[%clk 0:02:16]} 15. Nxf6+ {[%clk 0:02:31]}  exf6 {[%clk 0:02:17]} 16. Nxh7 {[%clk 0:02:05]}  Qd8 {[%clk 0:02:06]} 17. Bd2 {[%clk 0:02:02]}  Re5 {[%clk 0:02:03]} 18. Bc3 {[%clk 0:02:00]}  Rxf5 {[%clk 0:01:29]} 19. Rxf5 {[%clk 0:01:59]}  Bxf5 {[%clk 0:01:30]} 20. Nxf6+ {[%clk 0:01:49]}  Kf8 {[%clk 0:01:22]} 21. Rf1 {[%clk 0:01:38]}  Bg6 {[%clk 0:01:14]} 22. Nh7+ {[%clk 0:01:32]}  Kg8 {[%clk 0:01:13]} 23. Nf6+ {[%clk 0:01:30]}  Kf8 {[%clk 0:01:13]} 24. Qf4 {[%clk 0:01:23]}  a6 {[%clk 0:00:43]} 25. Rd1 {[%clk 0:01:16]}  Qe7 {[%clk 0:00:37]} 26. Qxd6 {[%clk 0:01:13]}  Bxc2 {[%clk 0:00:30]} 27. Nd7+ {[%clk 0:01:03]}  Ke8 {[%clk 0:00:23]} 28. Re1 {[%clk 0:00:41]}  Bd4+ {[%clk 0:00:21]} 29. Kh1 {[%clk 0:00:38]}  Be4 {[%clk 0:00:21]} 30. Qxe7+ {[%clk 0:00:32]}  Kxe7 {[%clk 0:00:22]} 31. Bxd4 {[%clk 0:00:32]}  cxd4 {[%clk 0:00:20]} 32. Nb6 {[%clk 0:00:25]}  Rd8 {[%clk 0:00:18]} 33. Rxe4+ {[%clk 0:00:25]}  Kf6 {[%clk 0:00:19]} 34. Nd5+ {[%clk 0:00:25]}  Kf5 {[%clk 0:00:20]} 35. Rxd4 {[%clk 0:00:25]}  Ke6 {[%clk 0:00:11]} 36. Nf4+ {[%clk 0:00:24]} 1-0


[Site "https://www.chess.com"]

[Event "Titled Tuesday Blitz June 27 Late 2023"]
[White "Bernado Lopez, Roger"]
[Black "Kavutskiy, Konstantin"]
[WhiteFideId "24585009"]
[BlackFideId "2026384"]
[WhiteElo "2349"]
[BlackElo "2637"]
[Result "1-0"]
[Round "4"]
[TimeControl "180+2"]
[Date "2023.06.27"]
[WhiteClock "0:00:32"]
[BlackClock "0:00:17"]
[Board "84"]

1. e4 {[%clk 0:03:00]}  c5 {[%clk 0:02:55]} 2. Nf3 {[%clk 0:02:58]}  Nc6 {[%clk 0:02:55]} 3. d4 {[%clk 0:02:58]}  cxd4 {[%clk 0:02:56]} 4. Nxd4 {[%clk 0:02:59]}  Nf6 {[%clk 0:02:55]} 5. Nc3 {[%clk 0:02:59]}  e5 {[%clk 0:02:55]} 6. Ndb5 {[%clk 0:02:59]}  d6 {[%clk 0:02:55]} 7. Nd5 {[%clk 0:02:59]}  Nxd5 {[%clk 0:02:54]} 8. exd5 {[%clk 0:03:00]}  Ne7 {[%clk 0:02:54]} 9. c4 {[%clk 0:03:00]}  Ng6 {[%clk 0:02:54]} 10. Qa4 {[%clk 0:02:57]}  Bd7 {[%clk 0:02:51]} 11. Qb4 {[%clk 0:02:57]}  Qb8 {[%clk 0:02:51]} 12. Be3 {[%clk 0:02:54]}  a6 {[%clk 0:02:48]} 13. Nc3 {[%clk 0:02:53]}  a5 {[%clk 0:02:48]} 14. Qa3 {[%clk 0:02:46]}  Be7 {[%clk 0:02:47]} 15. g3 {[%clk 0:02:40]}  O-O {[%clk 0:02:44]} 16. h4 {[%clk 0:02:39]}  f5 {[%clk 0:02:41]} 17. h5 {[%clk 0:02:37]}  Nh8 {[%clk 0:02:41]} 18. O-O-O {[%clk 0:02:30]}  Nf7 {[%clk 0:02:37]} 19. Kb1 {[%clk 0:02:24]}  Rc8 {[%clk 0:02:34]} 20. Na4 {[%clk 0:02:14]}  Bxa4 {[%clk 0:02:22]} 21. Qxa4 {[%clk 0:02:14]}  Bg5 {[%clk 0:02:05]} 22. f4 {[%clk 0:01:51]}  Bf6 {[%clk 0:01:59]} 23. Qd7 {[%clk 0:01:44]}  exf4 {[%clk 0:01:52]} 24. gxf4 {[%clk 0:01:40]}  Re8 {[%clk 0:01:48]} 25. Bb6 {[%clk 0:01:17]}  Ra6 {[%clk 0:01:30]} 26. c5 {[%clk 0:01:15]}  dxc5 {[%clk 0:01:24]} 27. Bxa6 {[%clk 0:01:14]}  bxa6 {[%clk 0:01:24]} 28. Qc7 {[%clk 0:01:12]}  Qa8 {[%clk 0:00:59]} 29. Rhe1 {[%clk 0:00:59]}  Rb8 {[%clk 0:00:54]} 30. d6 {[%clk 0:00:45]}  Rb7 {[%clk 0:00:47]} 31. Qxb7 {[%clk 0:00:38]}  Qf8 {[%clk 0:00:31]} 32. d7 {[%clk 0:00:36]}  Nd8 {[%clk 0:00:17]} 33. Bxd8 {[%clk 0:00:32]} 1-0


[Site "https://www.chess.com"]

[Event "Titled Tuesday Blitz June 27 Late 2023"]
[White "Moral Garcia, Serafin"]
[Black "Coelho, Ramyres Santana"]
[WhiteFideId "2201925"]
[BlackFideId "2120690"]
[WhiteElo "2628"]
[BlackElo "2304"]
[Result "0-1"]
[Round "4"]
[TimeControl "180+2"]
[Date "2023.06.27"]
[WhiteClock "0:00:14"]
[BlackClock "0:00:17"]
[Board "86"]

1. c4 {[%clk 0:02:05]}  Nf6 {[%clk 0:02:59]} 2. Nc3 {[%clk 0:02:05]}  g6 {[%clk 0:02:59]} 3. g3 {[%clk 0:02:05]}  d6 {[%clk 0:02:59]} 4. Bg2 {[%clk 0:02:05]}  Bg7 {[%clk 0:03:00]} 5. Rb1 {[%clk 0:02:04]}  O-O {[%clk 0:03:01]} 6. b4 {[%clk 0:02:04]}  e5 {[%clk 0:03:01]} 7. d3 {[%clk 0:02:04]}  Nc6 {[%clk 0:03:02]} 8. Nf3 {[%clk 0:02:04]}  Nd4 {[%clk 0:03:01]} 9. Nxd4 {[%clk 0:01:56]}  exd4 {[%clk 0:03:02]} 10. Ne4 {[%clk 0:01:55]}  Nxe4 {[%clk 0:03:02]} 11. Bxe4 {[%clk 0:01:56]}  Re8 {[%clk 0:03:01]} 12. O-O {[%clk 0:01:55]}  h5 {[%clk 0:02:47]} 13. Bf4 {[%clk 0:01:45]}  h4 {[%clk 0:02:43]} 14. Qd2 {[%clk 0:01:42]}  h3 {[%clk 0:02:28]} 15. a4 {[%clk 0:01:38]}  c6 {[%clk 0:02:26]} 16. b5 {[%clk 0:01:30]}  d5 {[%clk 0:02:17]} 17. Bf3 {[%clk 0:01:24]}  f6 {[%clk 0:02:13]} 18. Bh6 {[%clk 0:01:19]}  g5 {[%clk 0:02:12]} 19. Bxg7 {[%clk 0:01:19]}  Kxg7 {[%clk 0:02:13]} 20. c5 {[%clk 0:01:12]}  Qe7 {[%clk 0:02:02]} 21. Rfc1 {[%clk 0:01:11]}  g4 {[%clk 0:01:59]} 22. Bh1 {[%clk 0:00:58]}  Qxe2 {[%clk 0:01:55]} 23. Qf4 {[%clk 0:00:57]}  Qxd3 {[%clk 0:01:47]} 24. bxc6 {[%clk 0:00:51]}  bxc6 {[%clk 0:01:48]} 25. Qc7+ {[%clk 0:00:51]}  Kg6 {[%clk 0:01:37]} 26. Qxc6 {[%clk 0:00:49]}  Bf5 {[%clk 0:01:29]} 27. Qxd5 {[%clk 0:00:27]}  Rad8 {[%clk 0:01:20]} 28. Qa2 {[%clk 0:00:25]}  Re2 {[%clk 0:01:16]} 29. Qa1 {[%clk 0:00:21]}  Rde8 {[%clk 0:01:13]} 30. c6 {[%clk 0:00:19]}  Qd2 {[%clk 0:01:06]} 31. Rf1 {[%clk 0:00:19]}  Bxb1 {[%clk 0:01:03]} 32. Qxb1+ {[%clk 0:00:19]}  d3 {[%clk 0:01:03]} 33. c7 {[%clk 0:00:18]}  Rxf2 {[%clk 0:00:31]} 34. Rxf2 {[%clk 0:00:16]}  Re1+ {[%clk 0:00:31]} 35. Qxe1 {[%clk 0:00:15]}  Qxe1+ {[%clk 0:00:30]} 36. Rf1 {[%clk 0:00:15]}  Qe3+ {[%clk 0:00:29]} 37. Rf2 {[%clk 0:00:16]}  d2 {[%clk 0:00:28]} 38. Be4+ {[%clk 0:00:13]}  Qxe4 {[%clk 0:00:20]} 39. c8=Q {[%clk 0:00:13]}  d1=Q+ {[%clk 0:00:16]} 40. Rf1 {[%clk 0:00:14]}  Qg2# {[%clk 0:00:17]} 0-1


[Site "https://www.chess.com"]

[Event "Titled Tuesday Blitz June 27 Late 2023"]
[White "Skaric, Djuro"]
[Black "Antipov, Mikhail Al."]
[WhiteFideId "934569"]
[BlackFideId "4107012"]
[WhiteElo "2340"]
[BlackElo "2905"]
[Result "0-1"]
[Round "4"]
[TimeControl "180+2"]
[Date "2023.06.27"]
[WhiteClock "0:01:21"]
[BlackClock "0:02:33"]
[Board "87"]

1. g3 {[%clk 0:02:59]}  g6 {[%clk 0:02:59]} 2. Bg2 {[%clk 0:02:57]}  Bg7 {[%clk 0:03:00]} 3. d3 {[%clk 0:02:56]}  d5 {[%clk 0:03:01]} 4. Nf3 {[%clk 0:02:56]}  Nf6 {[%clk 0:03:01]} 5. O-O {[%clk 0:02:56]}  O-O {[%clk 0:03:02]} 6. Nc3 {[%clk 0:02:56]}  c5 {[%clk 0:03:01]} 7. e4 {[%clk 0:02:56]}  dxe4 {[%clk 0:03:01]} 8. dxe4 {[%clk 0:02:56]}  Nc6 {[%clk 0:03:02]} 9. h3 {[%clk 0:02:56]}  a6 {[%clk 0:02:58]} 10. Be3 {[%clk 0:02:56]}  Nd7 {[%clk 0:02:58]} 11. Nd2 {[%clk 0:02:46]}  b5 {[%clk 0:02:54]} 12. f4 {[%clk 0:02:39]}  b4 {[%clk 0:02:50]} 13. Ne2 {[%clk 0:02:35]}  Bb7 {[%clk 0:02:42]} 14. e5 {[%clk 0:02:28]}  Qc7 {[%clk 0:02:42]} 15. Nc4 {[%clk 0:02:27]}  Rad8 {[%clk 0:02:42]} 16. Qe1 {[%clk 0:02:24]}  a5 {[%clk 0:02:40]} 17. Qf2 {[%clk 0:02:22]}  Ba6 {[%clk 0:02:39]} 18. b3 {[%clk 0:02:22]}  Bxc4 {[%clk 0:02:40]} 19. bxc4 {[%clk 0:02:21]}  Nb6 {[%clk 0:02:40]} 20. Bxc5 {[%clk 0:02:19]}  Nxc4 {[%clk 0:02:41]} 21. Nd4 {[%clk 0:02:16]}  Nxd4 {[%clk 0:02:33]} 22. Bxd4 {[%clk 0:02:16]}  e6 {[%clk 0:02:34]} 23. Rad1 {[%clk 0:02:12]}  Rd7 {[%clk 0:02:34]} 24. c3 {[%clk 0:02:06]}  Rfd8 {[%clk 0:02:34]} 25. Rc1 {[%clk 0:01:49]}  Bf8 {[%clk 0:02:33]} 26. Rfd1 {[%clk 0:01:42]}  bxc3 {[%clk 0:02:31]} 27. Rxc3 {[%clk 0:01:39]}  Rxd4 {[%clk 0:02:31]} 28. Rxd4 {[%clk 0:01:37]}  Rxd4 {[%clk 0:02:32]} 29. Qxd4 {[%clk 0:01:24]}  Bc5 {[%clk 0:02:32]} 30. Rxc4 {[%clk 0:01:24]}  Bxd4+ {[%clk 0:02:33]} 31. Rxd4 {[%clk 0:01:21]}  Qc5 {[%clk 0:02:33]} 0-1


[Site "https://www.chess.com"]

[Event "Titled Tuesday Blitz June 27 Late 2023"]
[White "Mekhitarian, Krikor Sevag"]
[Black "Czerw, Dawid"]
[WhiteFideId "2107660"]
[BlackFideId "1145746"]
[WhiteElo "2855"]
[BlackElo "2501"]
[Result "1-0"]
[Round "4"]
[TimeControl "180+2"]
[Date "2023.06.27"]
[WhiteClock "0:00:45"]
[BlackClock "0:00:01"]
[Board "88"]

1. Nf3 {[%clk 0:03:00]}  Nf6 {[%clk 0:02:58]} 2. c4 {[%clk 0:03:00]}  c6 {[%clk 0:02:59]} 3. d4 {[%clk 0:03:00]}  d5 {[%clk 0:02:59]} 4. e3 {[%clk 0:03:00]}  a6 {[%clk 0:02:58]} 5. Bd3 {[%clk 0:02:48]}  b5 {[%clk 0:02:57]} 6. b3 {[%clk 0:02:48]}  Bg4 {[%clk 0:02:55]} 7. h3 {[%clk 0:02:47]}  Bh5 {[%clk 0:02:52]} 8. g4 {[%clk 0:02:45]}  Bg6 {[%clk 0:02:51]} 9. Ne5 {[%clk 0:02:46]}  Nfd7 {[%clk 0:02:47]} 10. Nxg6 {[%clk 0:02:44]}  hxg6 {[%clk 0:02:48]} 11. Kf1 {[%clk 0:02:40]}  e5 {[%clk 0:02:39]} 12. cxd5 {[%clk 0:02:37]}  cxd5 {[%clk 0:02:30]} 13. dxe5 {[%clk 0:02:37]}  Nxe5 {[%clk 0:02:31]} 14. Be2 {[%clk 0:02:38]}  Nbc6 {[%clk 0:02:25]} 15. Bb2 {[%clk 0:02:36]}  Bc5 {[%clk 0:02:20]} 16. Nd2 {[%clk 0:02:26]}  Qe7 {[%clk 0:02:11]} 17. Rc1 {[%clk 0:02:25]}  Rc8 {[%clk 0:01:57]} 18. Nf3 {[%clk 0:02:21]}  O-O {[%clk 0:01:15]} 19. Nxe5 {[%clk 0:02:16]}  Nxe5 {[%clk 0:01:14]} 20. Qxd5 {[%clk 0:02:17]}  Bd6 {[%clk 0:00:57]} 21. Kg2 {[%clk 0:02:15]}  g5 {[%clk 0:00:54]} 22. Rxc8 {[%clk 0:01:58]}  Rxc8 {[%clk 0:00:53]} 23. Rd1 {[%clk 0:01:59]}  Bb8 {[%clk 0:00:49]} 24. Qe4 {[%clk 0:01:53]}  Qc7 {[%clk 0:00:44]} 25. Rc1 {[%clk 0:01:24]}  Nc6 {[%clk 0:00:33]} 26. Bf3 {[%clk 0:01:18]}  Qh2+ {[%clk 0:00:19]} 27. Kf1 {[%clk 0:01:19]}  Rd8 {[%clk 0:00:08]} 28. Qxc6 {[%clk 0:00:47]}  Rd2 {[%clk 0:00:03]} 29. Qe8+ {[%clk 0:00:46]}  Kh7 {[%clk 0:00:03]} 30. Be4+ {[%clk 0:00:46]}  g6 {[%clk 0:00:01]} 31. Qh8# {[%clk 0:00:45]} 1-0


[Site "https://www.chess.com"]

[Event "Titled Tuesday Blitz June 27 Late 2023"]
[White "Fernandez, Daniel"]
[Black "Womacka, Mathias"]
[WhiteFideId "2015390"]
[BlackFideId "4611390"]
[WhiteElo "2711"]
[BlackElo "2501"]
[Result "1/2-1/2"]
[Round "4"]
[TimeControl "180+2"]
[Date "2023.06.27"]
[WhiteClock "0:00:04"]
[BlackClock "0:00:18"]
[Board "89"]

1. Nf3 {[%clk 0:02:58]}  c5 {[%clk 0:02:59]} 2. Nc3 {[%clk 0:02:48]}  d5 {[%clk 0:02:57]} 3. d4 {[%clk 0:02:43]}  cxd4 {[%clk 0:02:55]} 4. Qxd4 {[%clk 0:02:42]}  Nf6 {[%clk 0:02:50]} 5. e4 {[%clk 0:02:41]}  Nc6 {[%clk 0:02:42]} 6. Bb5 {[%clk 0:02:38]}  Bd7 {[%clk 0:02:33]} 7. Bxc6 {[%clk 0:02:35]}  Bxc6 {[%clk 0:02:32]} 8. e5 {[%clk 0:02:28]}  Ne4 {[%clk 0:02:31]} 9. e6 {[%clk 0:02:23]}  fxe6 {[%clk 0:02:15]} 10. Ne5 {[%clk 0:02:22]}  Qb6 {[%clk 0:02:12]} 11. Qxb6 {[%clk 0:02:19]}  axb6 {[%clk 0:02:10]} 12. Nxe4 {[%clk 0:02:20]}  dxe4 {[%clk 0:02:10]} 13. Be3 {[%clk 0:02:20]}  g6 {[%clk 0:02:09]} 14. Bxb6 {[%clk 0:02:08]}  Bg7 {[%clk 0:02:09]} 15. Bd4 {[%clk 0:02:08]}  O-O {[%clk 0:02:07]} 16. Nxc6 {[%clk 0:02:02]}  bxc6 {[%clk 0:02:05]} 17. Bxg7 {[%clk 0:02:02]}  Kxg7 {[%clk 0:02:06]} 18. Ke2 {[%clk 0:02:00]}  Rf5 {[%clk 0:02:01]} 19. a4 {[%clk 0:01:57]}  Rfa5 {[%clk 0:01:26]} 20. b3 {[%clk 0:01:55]}  Kf6 {[%clk 0:01:27]} 21. Ke3 {[%clk 0:01:55]}  Ke5 {[%clk 0:01:27]} 22. Rhd1 {[%clk 0:01:44]}  Rd5 {[%clk 0:01:27]} 23. c4 {[%clk 0:01:43]}  Rd6 {[%clk 0:01:22]} 24. f4+ {[%clk 0:01:30]}  exf3 {[%clk 0:01:21]} 25. gxf3 {[%clk 0:01:29]}  Rb8 {[%clk 0:01:14]} 26. f4+ {[%clk 0:01:23]}  Kf5 {[%clk 0:01:14]} 27. Rxd6 {[%clk 0:01:05]}  exd6 {[%clk 0:01:14]} 28. Ra3 {[%clk 0:01:05]}  c5 {[%clk 0:01:06]} 29. a5 {[%clk 0:01:05]}  Ra8 {[%clk 0:01:06]} 30. a6 {[%clk 0:01:05]}  Ra7 {[%clk 0:01:06]} 31. Ra1 {[%clk 0:01:02]}  d5 {[%clk 0:00:57]} 32. Kf3 {[%clk 0:01:00]}  h6 {[%clk 0:00:47]} 33. h4 {[%clk 0:00:59]}  g5 {[%clk 0:00:42]} 34. fxg5 {[%clk 0:00:54]}  hxg5 {[%clk 0:00:43]} 35. h5 {[%clk 0:00:53]}  g4+ {[%clk 0:00:42]} 36. Kg3 {[%clk 0:00:50]}  Kg5 {[%clk 0:00:43]} 37. h6 {[%clk 0:00:22]}  Kxh6 {[%clk 0:00:42]} 38. Kxg4 {[%clk 0:00:22]}  Kg6 {[%clk 0:00:43]} 39. Ra5 {[%clk 0:00:21]}  Kf6 {[%clk 0:00:41]} 40. Kf4 {[%clk 0:00:22]}  dxc4 {[%clk 0:00:33]} 41. bxc4 {[%clk 0:00:21]}  Ke7 {[%clk 0:00:32]} 42. Ke5 {[%clk 0:00:18]}  Kd7 {[%clk 0:00:33]} 43. Rxc5 {[%clk 0:00:15]}  Rxa6 {[%clk 0:00:32]} 44. Rb5 {[%clk 0:00:15]}  Ra1 {[%clk 0:00:28]} 45. Rb6 {[%clk 0:00:13]}  Kc7 {[%clk 0:00:27]} 46. c5 {[%clk 0:00:11]}  Rc1 {[%clk 0:00:25]} 47. Kd4 {[%clk 0:00:09]}  e5+ {[%clk 0:00:23]} 48. Kd5 {[%clk 0:00:09]}  e4 {[%clk 0:00:22]} 49. Re6 {[%clk 0:00:07]}  Rd1+ {[%clk 0:00:20]} 50. Kc4 {[%clk 0:00:07]}  Rc1+ {[%clk 0:00:18]} 51. Kb5 {[%clk 0:00:08]}  Rb1+ {[%clk 0:00:18]} 52. Ka4 {[%clk 0:00:07]}  Rc1 {[%clk 0:00:18]} 53. Kb4 {[%clk 0:00:07]}  Rb1+ {[%clk 0:00:18]} 54. Ka3 {[%clk 0:00:07]}  Rc1 {[%clk 0:00:18]} 55. Kb4 {[%clk 0:00:07]}  Rb1+ {[%clk 0:00:18]} 56. Kc4 {[%clk 0:00:06]}  Rc1+ {[%clk 0:00:18]} 57. Kd4 {[%clk 0:00:07]}  Rd1+ {[%clk 0:00:18]} 58. Ke3 {[%clk 0:00:05]}  Rc1 {[%clk 0:00:17]} 59. Kd4 {[%clk 0:00:04]}  Rd1+ {[%clk 0:00:17]} 60. Kxe4 {[%clk 0:00:04]}  Re1+ {[%clk 0:00:17]} 61. Kd5 {[%clk 0:00:04]}  Rxe6 {[%clk 0:00:17]} 62. Kxe6 {[%clk 0:00:05]}  Kc6 {[%clk 0:00:17]} 63. Ke5 {[%clk 0:00:04]}  Kxc5 {[%clk 0:00:18]} 1/2-1/2


[Site "https://www.chess.com"]

[Event "Titled Tuesday Blitz June 27 Late 2023"]
[White "Mirzoev, Azer"]
[Black "Yeritsyan, Hayk"]
[WhiteFideId "13400304"]
[BlackFideId "13307320"]
[WhiteElo "2678"]
[BlackElo "2495"]
[Result "1-0"]
[Round "4"]
[TimeControl "180+2"]
[Date "2023.06.27"]
[WhiteClock "0:01:02"]
[BlackClock "0:00:10"]
[Board "91"]

1. c4 {[%clk 0:03:00]}  c6 {[%clk 0:02:59]} 2. e4 {[%clk 0:03:00]}  e5 {[%clk 0:02:57]} 3. d4 {[%clk 0:02:57]}  d6 {[%clk 0:02:57]} 4. Nc3 {[%clk 0:02:55]}  Nf6 {[%clk 0:02:55]} 5. f4 {[%clk 0:02:54]}  exd4 {[%clk 0:02:50]} 6. Qxd4 {[%clk 0:02:54]}  Be7 {[%clk 0:02:50]} 7. Nf3 {[%clk 0:02:54]}  O-O {[%clk 0:02:50]} 8. Be3 {[%clk 0:02:53]}  Nbd7 {[%clk 0:02:50]} 9. O-O-O {[%clk 0:02:50]}  Qc7 {[%clk 0:02:49]} 10. Kb1 {[%clk 0:02:45]}  Nc5 {[%clk 0:02:45]} 11. h3 {[%clk 0:02:38]}  Re8 {[%clk 0:02:40]} 12. Nd2 {[%clk 0:02:21]}  Bf8 {[%clk 0:02:03]} 13. g4 {[%clk 0:02:19]}  Ne6 {[%clk 0:01:54]} 14. Qd3 {[%clk 0:02:18]}  Nc5 {[%clk 0:01:50]} 15. Qc2 {[%clk 0:02:17]}  Qa5 {[%clk 0:01:35]} 16. Bg2 {[%clk 0:02:11]}  Rb8 {[%clk 0:01:17]} 17. g5 {[%clk 0:02:10]}  Nh5 {[%clk 0:01:09]} 18. Bf3 {[%clk 0:02:04]}  g6 {[%clk 0:00:48]} 19. Bxh5 {[%clk 0:02:02]}  gxh5 {[%clk 0:00:49]} 20. Nb3 {[%clk 0:01:40]}  Nxb3 {[%clk 0:00:46]} 21. axb3 {[%clk 0:01:40]}  Bg7 {[%clk 0:00:38]} 22. Bd4 {[%clk 0:01:35]}  Bf8 {[%clk 0:00:22]} 23. f5 {[%clk 0:01:25]}  Bd7 {[%clk 0:00:19]} 24. Rhg1 {[%clk 0:01:20]}  Rbd8 {[%clk 0:00:17]} 25. g6 {[%clk 0:01:17]}  fxg6 {[%clk 0:00:15]} 26. fxg6 {[%clk 0:01:17]}  hxg6 {[%clk 0:00:12]} 27. Rxg6+ {[%clk 0:01:16]}  Kh7 {[%clk 0:00:13]} 28. Qg2 {[%clk 0:01:12]}  Bh6 {[%clk 0:00:10]} 29. Rxh6+ {[%clk 0:01:04]}  Kxh6 {[%clk 0:00:10]} 30. Qg7# {[%clk 0:01:02]} 1-0


[Site "https://www.chess.com"]